bitfinex/quotes_BTCUSD_20250614
["timestamp","ask_amount","ask_price","bid_price","bid_amount"]
[1749926373181,5.20651465,104670.0,104660.0,0.27180391]
[1749926373404,5.20427454,104670.0,104660.0,0.26224953]
[1749926373628,5.20427454,104670.0,104660.0,0.271804]
[1749926373629,5.19472126,104670.0,104660.0,0.271804]
[1749926374067,5.19472126,104670.0,104660.0,0.28135838]
[1749926374277,5.19472125,104670.0,104660.0,0.29091258]
[1749926374489,5.00588466,104670.0,104660.0,0.29091258]
[1749926374701,5.01259552,104670.0,104660.0,0.29091258]
[1749926374905,5.01259492,104670.0,104660.0,0.29091258]
[1749926375148,5.0125949,104670.0,104660.0,0.29091258]
[1749926375355,5.01259489,104670.0,104660.0,0.29091258]
[1749926375757,5.0125949,104670.0,104660.0,0.29091258]
[1749926375914,5.0125949,104670.0,104660.0,0.30046668]
[1749926376120,5.0058789,104670.0,104660.0,0.30046668]
[1749926376329,5.01259496,104670.0,104660.0,0.30046668]
[1749926376533,5.01259497,104670.0,104660.0,0.30046668]
[1749926376925,5.01259496,104670.0,104660.0,0.30046668]
[1749926377748,5.18800089,104670.0,104660.0,0.29091258]
[1749926378002,5.2036717,104670.0,104660.0,0.29091258]
[1749926378207,5.19471695,104670.0,104660.0,0.30046668]
[1749926378506,5.18800089,104670.0,104660.0,0.30046668]
[1749926378710,5.2036717,104670.0,104660.0,0.28135838]
[1749926378928,5.19695564,104670.0,104660.0,0.28135838]
[1749926379122,5.19471674,104670.0,104660.0,0.28135838]
[1749926379355,5.20367121,104670.0,104660.0,0.28135838]
[1749926379557,5.18800089,104670.0,104660.0,0.28135838]
[1749926379715,5.0125945,104670.0,104660.0,0.28135838]
[1749926379924,5.19695538,104670.0,104660.0,0.28135838]
[1749926380188,5.18800089,104670.0,104660.0,0.28135838]
[1749926380379,5.17844733,104670.0,104660.0,0.215204]
[1749926380616,5.18740181,104670.0,104660.0,0.215204]
[1749926381026,5.19411767,104670.0,104660.0,0.215204]
[1749926381250,5.18740181,104670.0,104660.0,0.215204]
[1749926381461,5.18516319,104670.0,104660.0,0.215204]
[1749926381718,5.19411767,104670.0,104660.0,0.22475838]
[1749926381956,5.18516319,104670.0,104660.0,0.22475838]
[1749926382162,5.19411767,104670.0,104660.0,0.22475838]
[1749926382376,5.19411825,104670.0,104660.0,0.22475838]
[1749926382586,5.1941214,104670.0,104660.0,0.22475838]
[1749926382823,5.18740556,104670.0,104660.0,0.22475838]
[1749926383029,5.1941246,104670.0,104660.0,0.22475838]
[1749926383244,5.19412468,104670.0,104660.0,0.22475838]
[1749926383453,5.19412472,104670.0,104660.0,0.22475838]
[1749926383705,5.1941247,104670.0,104660.0,0.22475838]
[1749926383911,5.19412469,104670.0,104660.0,0.22475838]
[1749926384129,5.18740582,104670.0,104660.0,0.22475838]
[1749926384333,5.18516623,104670.0,104660.0,0.22475838]
[1749926384543,5.19412502,104670.0,104660.0,0.22475838]
[1749926384752,5.17844733,104670.0,104660.0,0.25355838]
[1749926384993,5.18516645,104670.0,104660.0,0.28435838]
[1749926385201,5.18516646,104670.0,104660.0,0.28435838]
[1749926385405,5.1941253,104670.0,104660.0,0.29391258]
[1749926385827,5.1941253,104670.0,104660.0,0.28435838]
[1749926386045,5.17844733,104670.0,104660.0,0.28435838]
[1749926386463,5.19412573,104670.0,104660.0,0.28435838]
[1749926386680,5.1874065,104670.0,104660.0,0.28435838]
[1749926386893,5.19412591,104670.0,104660.0,0.28435838]
[1749926387302,5.18740653,104670.0,104660.0,0.28435838]
[1749926387507,5.19412593,104670.0,104660.0,0.28435838]
[1749926387889,5.17844733,104670.0,104660.0,0.28435838]
[1749926388169,5.18516673,104670.0,104660.0,0.28435838]
[1749926388591,5.19412593,104670.0,104660.0,0.28435838]
[1749926388817,5.19412602,104670.0,104660.0,0.28435838]
[1749926389443,5.19412605,104670.0,104660.0,0.28435838]
[1749926389675,5.19412626,104670.0,104660.0,0.28435838]
[1749926389888,5.19412654,104670.0,104660.0,0.28435838]
[1749926390103,5.17844733,104670.0,104660.0,0.28435838]
[1749926390287,5.19412654,104670.0,104660.0,0.28435838]
[1749926390501,5.18740687,104670.0,104660.0,0.28435838]
[1749926390883,5.19412652,104670.0,104660.0,0.274804]
[1749926391447,5.19412652,104670.0,104660.0,0.244004]
[1749926391879,5.5340722,104670.0,104660.0,0.005]
[1749926392094,5.5340722,104670.0,104640.0,0.0285]
[1749926392095,0.55022409,104650.0,104640.0,0.0285]
[1749926392330,4.79709597,104640.0,104630.0,0.0576]
[1749926392557,0.55984231,104620.0,104610.0,0.20074526]
[1749926392795,0.35911908,104600.0,104590.0,0.21025515]
[1749926393029,0.36867857,104600.0,104590.0,0.27741619]
[1749926393268,0.39675303,104600.0,104590.0,0.27741619]
[1749926393487,0.37763354,104600.0,104590.0,0.43813619]
[1749926393712,0.36867894,104600.0,104590.0,0.43813619]
[1749926393928,0.43651555,104600.0,104590.0,0.43813619]
[1749926394153,0.47456205,104600.0,104590.0,0.43861453]
[1749926394598,0.47516731,104600.0,104590.0,0.43865453]
[1749926394599,0.69384171,104600.0,104590.0,0.26833403]
[1749926394831,0.61520658,104600.0,104590.0,0.38605535]
[1749926395097,0.62416071,104600.0,104590.0,0.38605535]
[1749926395314,0.62416071,104600.0,104590.0,0.21673458]
[1749926395315,5.21161444,104600.0,104590.0,0.21673458]
[1749926395549,5.20144857,104600.0,104590.0,0.00647834]
[1749926395785,5.20144826,104600.0,104590.0,0.00647834]
[1749926396015,5.28192835,104600.0,104590.0,0.00647834]
[1749926396245,5.29759678,104600.0,104590.0,0.01603948]
[1749926396492,5.10028354,104600.0,104590.0,0.23594485]
[1749926396755,5.06312273,104600.0,104590.0,0.24550553]
[1749926397013,5.29278397,104600.0,104590.0,0.22638426]
[1749926397242,5.28383051,104600.0,104590.0,0.22638426]
[1749926397469,5.28383046,104600.0,104590.0,0.22638426]
[1749926397685,5.29278391,104600.0,104590.0,0.22638426]
[1749926397892,5.29278393,104600.0,104590.0,0.22638426]
[1749926398118,5.1448488,104600.0,104590.0,0.23594485]
[1749926398350,5.1448488,104600.0,104590.0,0.23594503]
[1749926398351,5.04869963,104600.0,104590.0,0.23594503]
[1749926398563,5.23095076,104600.0,104590.0,0.23594503]
[1749926398772,5.23318912,104600.0,104590.0,0.23594503]
[1749926398981,5.23095076,104600.0,104590.0,0.23594503]
[1749926399187,5.22423566,104600.0,104590.0,0.23594503]
[1749926399391,5.32038488,104600.0,104590.0,0.23594503]
[1749926400035,5.32038488,104600.0,104590.0,0.21682331]
[1749926400329,5.31082484,104600.0,104590.0,0.21682331]
[1749926400541,5.30126462,104600.0,104590.0,0.00647834]
[1749926401431,5.46234462,104600.0,104590.0,0.00647834]
[1749926402090,5.81312723,104600.0,104590.0,0.00647834]
[1749926402306,5.84382723,104600.0,104590.0,0.00647834]
[1749926402531,5.71697801,104600.0,104590.0,0.19770121]
[1749926402751,5.71697801,104600.0,104590.0,0.22638398]
[1749926402752,5.18219252,104600.0,104590.0,0.22638398]
[1749926402971,5.3733971,104600.0,104590.0,0.21682321]
[1749926403185,5.3733971,104600.0,104590.0,0.22638398]
[1749926403424,5.3733971,104600.0,104590.0,0.21682321]
[1749926403647,5.38195732,104600.0,104590.0,0.22038398]
[1749926403867,5.38295732,104600.0,104590.0,0.22038398]
[1749926404102,5.38395732,104600.0,104590.0,0.23394466]
[1749926404317,5.37339755,104600.0,104590.0,0.22038398]
[1749926404537,5.37339755,104600.0,104590.0,0.22638398]
[1749926404769,5.37439755,104600.0,104590.0,0.22738398]
[1749926405194,5.53563755,104600.0,104590.0,0.22738398]
[1749926405849,5.62222673,104600.0,104590.0,0.20826235]
[1749926406074,5.62222673,104600.0,104590.0,0.22738436]
[1749926406288,5.62222673,104600.0,104590.0,0.23694513]
[1749926406926,5.2073018,104600.0,104590.0,0.24650581]
[1749926407155,0.44718221,104600.0,104590.0,0.30430517]
[1749926408270,0.43762217,104600.0,104590.0,0.30430517]
[1749926408485,0.44718221,104600.0,104590.0,0.30430517]
[1749926408749,0.43762217,104600.0,104590.0,0.30430517]
[1749926408996,0.44718212,104600.0,104590.0,0.30430517]
[1749926409228,0.46630229,104600.0,104590.0,0.30430517]
[1749926409449,0.45389682,104600.0,104590.0,0.30430517]
[1749926409898,0.44433685,104600.0,104590.0,0.30430517]
[1749926410139,0.45389681,104600.0,104590.0,0.30430517]
[1749926410355,0.43477709,104600.0,104590.0,0.30430517]
[1749926410583,0.42521751,104600.0,104590.0,0.30430517]
[1749926410787,0.4376219,104600.0,104590.0,0.30430517]
[1749926410999,0.42521752,104600.0,104590.0,0.30430517]
[1749926411302,0.07850282,104600.0,104590.0,0.30430517]
[1749926411481,0.04960651,104600.0,104590.0,0.30430517]
[1749926412151,0.04960651,104600.0,104590.0,0.40054693]
[1749926413203,0.04960651,104600.0,104590.0,0.69544693]
[1749926419549,0.05856123,104600.0,104590.0,0.69544693]
[1749926419772,0.05856121,104600.0,104590.0,0.69544693]
[1749926419978,0.05856123,104600.0,104590.0,0.69544693]
[1749926420208,0.04960651,104600.0,104590.0,0.69544693]
[1749926420854,0.05855952,104600.0,104590.0,0.69544693]
[1749926421053,0.0585593,104600.0,104590.0,0.69544693]
[1749926421261,0.04960651,104600.0,104590.0,0.69544693]
[1749926421477,0.05855924,104600.0,104590.0,0.69544693]
[1749926421680,0.05855924,104600.0,104590.0,0.85676693]
[1749926421886,0.05855936,104600.0,104590.0,0.85676693]
[1749926422087,0.05855932,104600.0,104590.0,0.85676693]
[1749926422292,0.05855934,104600.0,104590.0,0.85676693]
[1749926422492,0.05855935,104600.0,104590.0,0.85676693]
[1749926422950,0.04960651,104600.0,104590.0,0.85676693]
[1749926423315,0.05855936,104600.0,104590.0,0.85676693]
[1749926423559,0.04960651,104600.0,104590.0,0.85676693]
[1749926423760,0.04960651,104600.0,104590.0,0.69544693]
[1749926423984,0.31133929,104600.0,104590.0,0.3986201]
[1749926424187,0.20531287,104600.0,104590.0,0.5222838]
[1749926424387,0.19575265,104600.0,104590.0,0.5222838]
[1749926424586,0.38695723,104600.0,104590.0,0.51272321]
[1749926424911,0.71739801,104600.0,104590.0,0.00747834]
[1749926425248,5.41013781,104600.0,104590.0,0.00747834]
[1749926425571,5.41013781,104600.0,104590.0,0.20826226]
[1749926425940,5.41013781,104600.0,104590.0,0.21782322]
[1749926426315,5.4190429,104600.0,104590.0,0.00747834]
[1749926426535,5.3889429,104600.0,104590.0,0.21782321]
[1749926426944,5.3889429,104600.0,104590.0,0.20826235]
[1749926427120,5.3889429,104600.0,104590.0,0.01703948]
[1749926427121,5.31332496,104600.0,104590.0,0.01703948]
[1749926427302,5.36126483,104600.0,104590.0,0.00747834]
[1749926427518,5.36126472,104600.0,104590.0,0.00747834]
[1749926428164,5.36126454,104600.0,104590.0,0.00747834]
[1749926428496,5.3612645,104600.0,104590.0,0.00747834]
[1749926428806,5.35235974,104600.0,104590.0,0.00747834]
[1749926428919,5.3612645,104600.0,104590.0,0.00747834]
[1749926429327,5.3613101,104600.0,104590.0,0.00747834]
[1749926429535,5.35235974,104600.0,104590.0,0.00747834]
[1749926429743,5.36131007,104600.0,104590.0,0.00747834]
[1749926429952,5.15257621,104600.0,104590.0,0.00747834]
[1749926430170,5.14362588,104600.0,104590.0,0.00747834]
[1749926430365,5.23986764,104600.0,104590.0,0.00263834]
[1749926430815,5.27818282,104600.0,104590.0,0.00263834]
[1749926433199,5.51272367,104600.0,104590.0,0.00263834]
[1749926433399,0.21992594,104580.0,104570.0,0.40965985]
[1749926433626,4.80677298,104580.0,104570.0,0.02874779]
[1749926433824,4.88284545,104580.0,104570.0,4.779e-05]
[1749926434111,4.80677298,104580.0,104570.0,0.19130723]
[1749926434386,4.80677298,104580.0,104570.0,0.27739494]
[1749926434387,4.596408,104580.0,104570.0,0.27739494]
[1749926434847,0.22302365,104600.0,104590.0,0.21990519]
[1749926434848,5.21808243,104600.0,104590.0,0.21990519]
[1749926435079,5.00710068,104600.0,104590.0,0.27730519]
[1749926435312,5.03578017,104600.0,104590.0,0.27730519]
[1749926435727,5.03678017,104600.0,104590.0,0.27730519]
[1749926435953,5.0473403,104600.0,104590.0,0.28030519]
[1749926436167,5.0473403,104600.0,104590.0,0.28030537]
[1749926436168,5.04734112,104600.0,104590.0,0.28030537]
[1749926436588,5.04734112,104600.0,104590.0,0.28986596]
[1749926436796,5.28853598,104600.0,104590.0,0.003]
[1749926437007,5.26736603,104600.0,104590.0,0.003]
[1749926437426,0.02868488,104580.0,104570.0,0.38199522]
[1749926437634,0.02868497,104580.0,104570.0,0.25845782]
[1749926437845,0.0191231,104580.0,104570.0,0.25845782]
[1749926438049,0.0286847,104580.0,104570.0,0.28765782]
[1749926438249,0.0286847,104580.0,104570.0,0.44977782]
[1749926438689,0.01912301,104580.0,104570.0,0.45977782]
[1749926438831,0.03068479,104580.0,104570.0,0.45977782]
[1749926439415,0.03068479,104580.0,104570.0,0.46377782]
[1749926439416,0.02212301,104580.0,104570.0,0.46377782]
[1749926439758,0.01256141,104580.0,104570.0,0.46377782]
[1749926439957,0.37236908,104590.0,104580.0,0.00956196]
[1749926440167,0.01912319,104580.0,104570.0,0.45421503]
[1749926440380,0.00956141,104580.0,104570.0,0.46377736]
[1749926440984,0.00956141,104580.0,104570.0,0.45977736]
[1749926441743,0.01912291,104580.0,104570.0,0.29765736]
[1749926442071,0.02868469,104580.0,104570.0,0.29765736]
[1749926442880,0.03824656,104580.0,104570.0,0.29765736]
[1749926443086,0.01912291,104580.0,104570.0,0.29765736]
[1749926444203,0.02968451,104580.0,104570.0,0.30265736]
[1749926444435,0.01056141,104580.0,104570.0,0.30265736]
[1749926445106,0.01056132,104580.0,104570.0,0.30265736]
[1749926446651,0.02012273,104580.0,104570.0,0.30265736]
[1749926447606,0.01056132,104580.0,104570.0,0.30265736]
[1749926447829,0.001,104580.0,104570.0,0.30265736]
[1749926448049,0.01056132,104580.0,104570.0,0.30265736]
[1749926448273,0.02012273,104580.0,104570.0,0.46501736]
[1749926448496,0.02968433,104580.0,104570.0,0.46501736]
[1749926448734,0.02968423,104580.0,104570.0,0.30265736]
[1749926451265,0.02012273,104580.0,104570.0,0.30265736]
[1749926451474,0.02968433,104580.0,104570.0,0.30265736]
[1749926452104,0.02012273,104580.0,104570.0,0.30265736]
[1749926452320,0.02968423,104580.0,104570.0,0.30265736]
[1749926452755,0.02012273,104580.0,104570.0,0.30265736]
[1749926455986,0.02968433,104580.0,104570.0,0.30265736]
[1749926456867,0.02968433,104580.0,104570.0,0.46469736]
[1749926457079,0.0392462,104580.0,104570.0,0.45513503]
[1749926457301,0.02968433,104580.0,104570.0,0.46469736]
[1749926457524,0.05842333,104580.0,104570.0,0.46469736]
[1749926457947,0.05742333,104580.0,104570.0,0.45969736]
[1749926458393,0.05842333,104580.0,104570.0,0.46269736]
[1749926458611,0.04886173,104580.0,104570.0,0.45269736]
[1749926458823,0.05842342,104580.0,104570.0,0.46069736]
[1749926459028,0.05942342,104580.0,104570.0,0.46069736]
[1749926459272,0.05942342,104580.0,104570.0,0.29865736]
[1749926460127,0.06898529,104580.0,104570.0,0.29865736]
[1749926460494,0.06898529,104580.0,104570.0,0.46077736]
[1749926460700,0.05942342,104580.0,104570.0,0.46077736]
[1749926461108,0.06898529,104580.0,104570.0,0.46077736]
[1749926461551,0.06898538,104580.0,104570.0,0.29865736]
[1749926461790,0.06898538,104580.0,104570.0,0.01104779]
[1749926461791,5.39118772,104580.0,104570.0,0.01104779]
[1749926462025,0.21038491,104570.0,104560.0,0.21996764]
[1749926462263,0.21994733,104570.0,104560.0,0.39179343]
[1749926462522,0.55994733,104570.0,104560.0,0.00014246]
[1749926462747,5.16959647,104570.0,104560.0,0.38219138]
[1749926462947,5.16959647,104570.0,104560.0,0.22011156]
[1749926463152,5.16959647,104570.0,104560.0,0.22967517]
[1749926463403,5.181371,104570.0,104560.0,0.00014246]
[1749926463606,5.181371,104570.0,104560.0,0.00970634]
[1749926464028,0.00956416,104550.0,104540.0,0.21948022]
[1749926464229,0.0286932,104550.0,104540.0,0.44089589]
[1749926464431,0.0286932,104550.0,104540.0,0.43137137]
[1749926464657,0.0286932,104550.0,104540.0,0.44093653]
[1749926464868,0.08549826,104550.0,104540.0,0.39170197]
[1749926465212,0.09606297,104550.0,104540.0,0.39470197]
[1749926465425,0.09606297,104550.0,104540.0,0.42560197]
[1749926465625,0.287359,104550.0,104540.0,0.4160369]
[1749926465836,0.28935964,104550.0,104540.0,0.4170369]
[1749926466056,0.0789341,104550.0,104540.0,0.43616722]
[1749926466254,0.08849826,104550.0,104540.0,0.46436722]
[1749926466418,0.09806297,104550.0,104540.0,0.46436722]
[1749926466616,0.289359,104550.0,104540.0,0.29264215]
[1749926466847,0.28935964,104550.0,104540.0,0.27351155]
[1749926467052,0.2702306,104550.0,104540.0,0.004]
[1749926467264,0.2702306,104550.0,104540.0,0.16612]
[1749926467559,0.35266326,104550.0,104540.0,0.16612]
[1749926467939,0.2702306,104550.0,104540.0,0.36700003]
[1749926468160,0.2672306,104550.0,104540.0,0.382131]
[1749926468362,0.2702306,104550.0,104540.0,0.413031]
[1749926468578,0.2712306,104550.0,104540.0,0.413031]
[1749926468990,0.2712306,104550.0,104540.0,0.250911]
[1749926469207,0.26166589,104550.0,104540.0,0.23177985]
[1749926469412,0.26166589,104550.0,104540.0,0.24134529]
[1749926470451,0.26166589,104550.0,104540.0,0.40374529]
[1749926470720,0.07036931,104550.0,104540.0,0.4529358]
[1749926470965,0.09906223,104550.0,104540.0,0.46250087]
[1749926471180,0.10862694,104550.0,104540.0,0.46250087]
[1749926471396,0.06080506,104550.0,104540.0,0.46250087]
[1749926471610,0.03205806,104550.0,104540.0,0.57657628]
[1749926471800,0.03205806,104550.0,104540.0,0.57657575]
[1749926472013,0.03205806,104550.0,104540.0,0.41421567]
[1749926472202,0.03205806,104550.0,104540.0,0.41421631]
[1749926472410,0.03205806,104550.0,104540.0,0.57681679]
[1749926472678,0.03205806,104550.0,104540.0,0.57681662]
[1749926472917,0.03205806,104550.0,104540.0,0.55898263]
[1749926473322,0.03205806,104550.0,104540.0,0.57681564]
[1749926473960,0.03205806,104550.0,104540.0,0.57681591]
[1749926474188,0.03205806,104550.0,104540.0,0.5769331]
[1749926474615,0.04162203,104550.0,104540.0,0.57693321]
[1749926474848,0.426484,104550.0,104540.0,0.31809145]
[1749926475058,0.39118619,104550.0,104540.0,0.31809208]
[1749926475264,0.38162203,104550.0,104540.0,0.30014087]
[1749926477620,0.37205806,104550.0,104540.0,0.30014087]
[1749926477830,0.38162212,104550.0,104540.0,0.30014087]
[1749926478039,0.39118637,104550.0,104540.0,0.30014087]
[1749926478247,0.37205806,104550.0,104540.0,0.30014087]
[1749926478917,0.38162203,104550.0,104540.0,0.30014087]
[1749926479127,0.39118619,104550.0,104540.0,0.30014087]
[1749926479345,0.38162203,104550.0,104540.0,0.30014087]
[1749926479554,0.39118619,104550.0,104540.0,0.30014087]
[1749926480020,0.39118609,104550.0,104540.0,0.30014087]
[1749926480229,0.40075034,104550.0,104540.0,0.30014087]
[1749926480434,0.39118609,104550.0,104540.0,0.30014087]
[1749926480619,0.37205806,104550.0,104540.0,0.30014087]
[1749926480878,0.37205806,104550.0,104540.0,0.46290087]
[1749926481085,0.38162203,104550.0,104540.0,0.46290087]
[1749926481304,0.37205806,104550.0,104540.0,0.46290087]
[1749926481725,0.38162203,104550.0,104540.0,0.46290087]
[1749926481938,0.39118619,104550.0,104540.0,0.46290087]
[1749926482150,0.38162203,104550.0,104540.0,0.46290087]
[1749926482358,0.39118609,104550.0,104540.0,0.46290087]
[1749926482800,0.40075025,104550.0,104540.0,0.30014087]
[1749926483012,0.47430494,104550.0,104540.0,0.28101027]
[1749926483221,0.48386955,104550.0,104540.0,0.28101027]
[1749926483435,0.41987966,104550.0,104540.0,0.28101027]
[1749926483923,0.37205806,104550.0,104540.0,0.37725203]
[1749926484142,0.03205806,104550.0,104540.0,0.54013203]
[1749926484993,0.004,104550.0,104540.0,0.54013203]
[1749926497894,0.004,104550.0,104540.0,0.56873496]
[1749926498694,0.004,104550.0,104540.0,0.54013203]
[1749926498894,0.004,104550.0,104540.0,0.83503203]
[1749926503981,0.004,104550.0,104540.0,0.54013203]
[1749926504452,0.004,104550.0,104540.0,0.53965203]
[1749926505368,0.01356406,104550.0,104540.0,0.47865203]
[1749926505625,0.01356406,104550.0,104540.0,0.47857203]
[1749926505626,0.02312831,104550.0,104540.0,0.47857203]
[1749926506322,0.59348904,104550.0,104540.0,0.2104452]
[1749926506552,0.37826102,104540.0,104530.0,0.38238167]
[1749926506827,0.39819549,104540.0,104530.0,0.4787149]
[1749926507040,0.43856102,104540.0,104530.0,0.4787149]
[1749926507277,0.06986535,104540.0,104530.0,0.3163149]
[1749926507483,0.06986535,104540.0,104530.0,0.4786749]
[1749926507694,0.09856093,104540.0,104530.0,0.4786749]
[1749926507915,0.28987525,104540.0,104530.0,0.2105077]
[1749926508130,0.28031036,104540.0,104530.0,0.38247433]
[1749926508328,0.28031036,104540.0,104530.0,0.39504059]
[1749926508569,0.28131036,104540.0,104530.0,0.38547433]
[1749926508782,0.28131082,104540.0,104530.0,0.38547433]
[1749926509002,0.28131082,104540.0,104530.0,0.40660694]
[1749926509003,0.28331082,104540.0,104530.0,0.40660694]
[1749926509248,0.27374547,104540.0,104530.0,0.1964241]
[1749926509722,0.61374547,104540.0,104530.0,0.20599064]
[1749926509967,0.42243115,104540.0,104530.0,0.23468933]
[1749926510194,0.4033,104540.0,104530.0,0.22512334]
[1749926510427,0.37169576,104540.0,104530.0,0.23468933]
[1749926510907,0.38126138,104540.0,104530.0,0.23468933]
[1749926511790,0.62441072,104540.0,104530.0,0.20599064]
[1749926512008,0.61484547,104540.0,104530.0,0.0146581]
[1749926512219,0.61484547,104540.0,104530.0,0.20599073]
[1749926512450,0.69319439,104540.0,104530.0,0.00509147]
[1749926512665,5.28960239,104540.0,104530.0,0.00509147]
[1749926512880,5.20168794,104540.0,104530.0,0.00509147]
[1749926513339,5.34073117,104540.0,104530.0,0.00509147]
[1749926514061,5.27733476,104540.0,104530.0,0.00209147]
[1749926514295,5.26576941,104540.0,104530.0,9.147e-05]
[1749926514527,5.26676941,104540.0,104530.0,0.0096581]
[1749926514763,5.27076941,104540.0,104530.0,0.0106581]
[1749926515453,5.24796794,104540.0,104530.0,0.21155727]
[1749926515680,5.34411716,104540.0,104530.0,0.1924241]
[1749926515960,5.34311716,104540.0,104530.0,0.1924241]
[1749926516204,5.24896794,104540.0,104530.0,0.1934241]
[1749926516429,5.24896794,104540.0,104530.0,0.20299064]
[1749926516655,5.27174071,104540.0,104530.0,0.20299073]
[1749926516889,5.24896794,104540.0,104530.0,0.20299073]
[1749926517726,5.06721897,104540.0,104530.0,0.21255727]
[1749926517964,5.07678468,104540.0,104530.0,0.22212362]
[1749926518232,5.07678468,104540.0,104530.0,0.22212371]
[1749926518530,5.10553768,104540.0,104530.0,0.20299073]
[1749926518760,5.28728629,104540.0,104530.0,0.20299073]
[1749926519014,5.28728629,104540.0,104530.0,0.21255717]
[1749926519220,5.28728629,104540.0,104530.0,0.20299073]
[1749926520356,5.28728629,104540.0,104530.0,0.1934241]
[1749926520581,5.28728629,104540.0,104530.0,0.20299073]
[1749926521331,5.30641689,104540.0,104530.0,0.21255727]
[1749926521543,5.31960993,104540.0,104530.0,0.1934241]
[1749926521761,5.31960993,104540.0,104530.0,0.00209147]
[1749926521762,5.38391017,104540.0,104530.0,0.00209147]
[1749926521979,5.35658148,104540.0,104530.0,0.00209147]
[1749926522199,5.37895803,104540.0,104530.0,0.00209147]
[1749926522423,5.37895803,104540.0,104530.0,0.1934241]
[1749926522646,5.37895803,104540.0,104530.0,0.00209147]
[1749926524684,5.4017115,104540.0,104530.0,0.00209147]
[1749926524941,0.35913371,104520.0,104510.0,0.36389513]
[1749926525175,0.34,104520.0,104510.0,0.22042865]
[1749926525409,0.34,104520.0,104510.0,0.27872865]
[1749926525879,0.06345197,104530.0,104520.0,0.27825246]
[1749926525880,0.3495658,104530.0,104520.0,0.27825246]
[1749926526150,0.3495658,104530.0,104520.0,0.37449422]
[1749926526151,0.34,104530.0,104520.0,0.37449422]
[1749926526381,0.34,104530.0,104520.0,0.53801422]
[1749926527091,0.34,104530.0,104520.0,0.37449422]
[1749926527321,0.34956599,104530.0,104520.0,0.37449422]
[1749926527554,0.36013216,104530.0,104520.0,0.28025246]
[1749926527783,0.35056599,104530.0,104520.0,0.28025246]
[1749926528032,0.35056589,104530.0,104520.0,0.28025246]
[1749926528239,0.35056589,104530.0,104520.0,0.28125246]
[1749926528448,0.36013197,104530.0,104520.0,0.28125246]
[1749926529111,0.35056589,104530.0,104520.0,0.28125246]
[1749926529538,0.36013197,104530.0,104520.0,0.28125246]
[1749926530396,0.36969823,104530.0,104520.0,0.28125246]
[1749926531270,0.36013197,104530.0,104520.0,0.28125246]
[1749926531690,0.35056589,104530.0,104520.0,0.28125246]
[1749926531905,0.36013188,104530.0,104520.0,0.28125246]
[1749926532120,0.341,104530.0,104520.0,0.28125246]
[1749926532324,0.3651273,104530.0,104520.0,0.28125246]
[1749926532578,0.35556113,104530.0,104520.0,0.28125246]
[1749926532789,0.01556123,104530.0,104520.0,0.28125246]
[1749926533215,0.00599524,104530.0,104520.0,0.28125246]
[1749926533424,0.01556113,104530.0,104520.0,0.28125246]
[1749926533639,0.02512721,104530.0,104520.0,0.28125246]
[1749926534079,0.01556113,104530.0,104520.0,0.28125246]
[1749926534286,0.00599524,104530.0,104520.0,0.28125246]
[1749926534727,0.01556113,104530.0,104520.0,0.28125246]
[1749926535398,0.03469338,104530.0,104520.0,0.28125246]
[1749926535630,0.03469329,104530.0,104520.0,0.28125246]
[1749926535857,0.01556104,104530.0,104520.0,0.28125246]
[1749926536080,0.03469338,104530.0,104520.0,0.28125246]
[1749926537424,0.03469329,104530.0,104520.0,0.28125246]
[1749926537879,0.02512703,104530.0,104520.0,0.28125246]
[1749926538115,0.04425937,104530.0,104520.0,0.28125246]
[1749926538361,0.04425928,104530.0,104520.0,0.28125246]
[1749926539006,0.05382618,104530.0,104520.0,0.28125246]
[1749926539678,0.01556123,104530.0,104520.0,0.29081945]
[1749926539902,0.0251273,104530.0,104520.0,0.29081945]
[1749926540121,0.01556113,104530.0,104520.0,0.29081945]
[1749926540415,0.03469338,104530.0,104520.0,0.29081945]
[1749926540633,0.04425982,104530.0,104520.0,0.29081945]
[1749926542651,0.04425982,104530.0,104520.0,0.45421945]
[1749926543284,0.04425973,104530.0,104520.0,0.45421945]
[1749926543711,0.05382617,104530.0,104520.0,0.45421945]
[1749926543922,0.05382617,104530.0,104520.0,0.29081945]
[1749926544134,0.2260272,104530.0,104520.0,0.24308556]
[1749926544348,0.2260272,104530.0,104520.0,0.37692556]
[1749926544571,0.2260272,104530.0,104520.0,0.003]
[1749926544572,0.21646085,104530.0,104520.0,0.003]
[1749926544803,4.81286885,104530.0,104520.0,0.16644]
[1749926545030,4.83566288,104530.0,104520.0,0.16644]
[1749926545258,4.83566288,104530.0,104520.0,0.17600754]
[1749926545489,4.82609644,104530.0,104520.0,0.17600754]
[1749926545714,4.82609644,104530.0,104520.0,0.01256754]
[1749926545954,4.82609644,104530.0,104520.0,0.21348574]
[1749926546196,4.82609644,104530.0,104520.0,0.21348592]
[1749926546441,4.82609644,104530.0,104520.0,0.003]
[1749926546662,5.26224566,104530.0,104520.0,0.003]
[1749926546873,5.29079819,104530.0,104520.0,0.20391838]
[1749926547086,5.22340097,104530.0,104520.0,0.20391838]
[1749926547301,5.19484844,104530.0,104520.0,0.20391838]
[1749926547511,5.19484844,104530.0,104520.0,0.23451838]
[1749926547721,5.21398133,104530.0,104520.0,0.28275273]
[1749926548171,5.02264796,104530.0,104520.0,0.29231963]
[1749926548387,0.39748796,104530.0,104520.0,0.29231963]
[1749926548614,0.36512749,104530.0,104520.0,0.29231963]
[1749926548827,0.37469393,104530.0,104520.0,0.29231963]
[1749926549038,0.38426047,104530.0,104520.0,0.29231963]
[1749926549245,0.37469393,104530.0,104520.0,0.29231963]
[1749926551326,0.38426047,104530.0,104520.0,0.29231963]
[1749926553605,0.38426047,104530.0,104520.0,0.29231972]
[1749926553606,0.3938271,104530.0,104520.0,0.29231972]
[1749926553804,0.37469393,104530.0,104520.0,0.29231972]
[1749926554006,0.38426047,104530.0,104520.0,0.30188662]
[1749926554381,0.3938271,104530.0,104520.0,0.28275273]
[1749926554580,0.38426111,104530.0,104520.0,0.28275273]
[1749926555002,0.56602748,104530.0,104520.0,0.27318565]
[1749926555202,0.38792225,104530.0,104520.0,0.28275264]
[1749926555437,0.36512822,104530.0,104520.0,0.29231954]
[1749926555660,0.55646085,104530.0,104520.0,0.27318565]
[1749926555874,0.58882151,104530.0,104520.0,0.28275273]
[1749926556174,0.38792225,104530.0,104520.0,0.28275273]
[1749926556377,0.36512822,104530.0,104520.0,0.29231972]
[1749926556605,0.36512822,104530.0,104520.0,0.30188662]
[1749926557034,0.37469485,104530.0,104520.0,0.30188662]
[1749926557255,0.21382142,104530.0,104520.0,0.30188662]
[1749926557464,0.02869961,104530.0,104520.0,0.30188662]
[1749926557874,0.01913298,104530.0,104520.0,0.30188662]
[1749926558287,0.01913252,104530.0,104520.0,0.30188662]
[1749926558495,0.03826495,104530.0,104520.0,0.30188662]
[1749926558850,0.06701595,104530.0,104520.0,0.30188662]
[1749926559401,0.38788306,104530.0,104520.0,0.30188662]
[1749926559602,0.38788297,104530.0,104520.0,0.30188662]
[1749926559796,0.39744923,104530.0,104520.0,0.30188662]
[1749926560003,0.38788297,104530.0,104520.0,0.30188662]